[Event "Late-Titled-Tuesday-Blitz-July-09-2024"]
[Site "Chess.com"]
[Date "2024.07.09"]
[Round "7"]
[White "VitorBronson"]
[Black "Ganziitoo"]
[Result "0-1"]
[WhiteElo "2505"]
[BlackElo "2394"]
[TimeControl "180+1"]
[EndTime "15:17:31 PDT"]
[Termination "Ganziitoo won by checkmate"]

1. e4 {[%clk 0:03:00.9]} 1... c5 {[%clk 0:02:55.2]} 2. Nf3 {[%clk 0:03:00.4]}
2... Nc6 {[%clk 0:02:55.6]} 3. d4 {[%clk 0:02:59.2]} 3... cxd4 {[%clk
0:02:56.5]} 4. Nxd4 {[%clk 0:02:59.6]} 4... e5 {[%clk 0:02:56.9]} 5. Nb5 {[%clk
0:02:59.4]} 5... d6 {[%clk 0:02:57.2]} 6. N1c3 {[%clk 0:02:58.6]} 6... a6 {[%clk
0:02:56.9]} 7. Na3 {[%clk 0:02:58.9]} 7... Be7 {[%clk 0:02:57.8]} 8. Nd5 {[%clk
0:02:58.3]} 8... Nf6 {[%clk 0:02:58.4]} 9. Nxe7 {[%clk 0:02:53.9]} 9... Qxe7
{[%clk 0:02:55.7]} 10. Bd3 {[%clk 0:02:35.7]} 10... O-O {[%clk 0:02:53.5]} 11.
Bg5 {[%clk 0:02:34.5]} 11... h6 {[%clk 0:02:53.1]} 12. Bh4 {[%clk 0:02:34.7]}
12... b5 {[%clk 0:02:47.1]} 13. c3 {[%clk 0:02:32.4]} 13... Qe6 {[%clk
0:02:15.4]} 14. O-O {[%clk 0:02:26.8]} 14... Nd7 {[%clk 0:02:02.2]} 15. Nc2
{[%clk 0:02:24]} 15... Nc5 {[%clk 0:02:01.6]} 16. Be2 {[%clk 0:02:19.7]} 16...
Nxe4 {[%clk 0:01:50.8]} 17. Ne3 {[%clk 0:02:19.6]} 17... Nc5 {[%clk 0:01:39.1]}
18. Nd5 {[%clk 0:02:17.5]} 18... Ra7 {[%clk 0:01:27.9]} 19. Kh1 {[%clk
0:02:06.4]} 19... Kh8 {[%clk 0:01:18.3]} 20. f4 {[%clk 0:02:06.5]} 20... f5
{[%clk 0:01:11.3]} 21. fxe5 {[%clk 0:02:03.1]} 21... dxe5 {[%clk 0:01:09.3]} 22.
Ne3 {[%clk 0:01:50.6]} 22... Rd7 {[%clk 0:00:57.4]} 23. Qc2 {[%clk 0:01:48.7]}
23... Rdf7 {[%clk 0:00:57.5]} 24. Rae1 {[%clk 0:01:42.6]} 24... f4 {[%clk
0:00:46.1]} 25. Ng4 {[%clk 0:01:20.3]} 25... e4 {[%clk 0:00:40.2]} 26. b4 {[%clk
0:01:13.8]} 26... Nd7 {[%clk 0:00:20.4]} 27. Bf3 {[%clk 0:01:07.1]} 27... e3
{[%clk 0:00:17.9]} 28. Re2 {[%clk 0:01:00]} 28... Nde5 {[%clk 0:00:18.1]} 29.
Nxe5 {[%clk 0:00:57.6]} 29... Nxe5 {[%clk 0:00:19]} 30. Be4 {[%clk 0:00:56.7]}
30... Qg4 {[%clk 0:00:16.6]} 31. Be1 {[%clk 0:00:53.5]} 31... Bf5 {[%clk
0:00:16.8]} 32. Bxf5 {[%clk 0:00:51.4]} 32... Qxf5 {[%clk 0:00:17.7]} 33. Qb3
{[%clk 0:00:45.4]} 33... Nc4 {[%clk 0:00:17.9]} 34. Qd1 {[%clk 0:00:41.5]} 34...
Qe4 {[%clk 0:00:15.8]} 35. Qc2 {[%clk 0:00:32.1]} 35... Qxc2 {[%clk 0:00:12.8]}
36. Rxc2 {[%clk 0:00:33]} 36... Rd7 {[%clk 0:00:07.3]} 37. Re2 {[%clk
0:00:23.1]} 37... Rd1 {[%clk 0:00:06.7]} 38. Kg1 {[%clk 0:00:23.6]} 38... g5
{[%clk 0:00:06.2]} 39. h4 {[%clk 0:00:19.9]} 39... Kh7 {[%clk 0:00:06.4]} 40.
hxg5 {[%clk 0:00:20.1]} 40... hxg5 {[%clk 0:00:07.3]} 41. a4 {[%clk 0:00:16.1]}
41... Kg6 {[%clk 0:00:07]} 42. axb5 {[%clk 0:00:16.1]} 42... axb5 {[%clk
0:00:07.9]} 43. Ra2 {[%clk 0:00:16.6]} 43... Kf5 {[%clk 0:00:06.1]} 44. Ra7
{[%clk 0:00:12.5]} 44... Kg4 {[%clk 0:00:04.9]} 45. Rh7 {[%clk 0:00:11.3]} 45...
e2 {[%clk 0:00:05]} 46. Rf3 {[%clk 0:00:10.4]} 46... Rxe1+ {[%clk 0:00:05]} 47.
Kf2 {[%clk 0:00:10.8]} 47... Rf1+ {[%clk 0:00:03.3]} 48. Kxe2 {[%clk 0:00:10.9]}
48... Rxf3 {[%clk 0:00:03.8]} 49. gxf3+ {[%clk 0:00:11.8]} 49... Kf5 {[%clk
0:00:04.4]} 50. Rb7 {[%clk 0:00:12.1]} 50... Re8+ {[%clk 0:00:04.9]} 51. Kf2
{[%clk 0:00:12.2]} 51... Re5 {[%clk 0:00:05.8]} 52. Rf7+ {[%clk 0:00:12.2]}
52... Kg6 {[%clk 0:00:05.8]} 53. Rb7 {[%clk 0:00:13.1]} 53... Rd5 {[%clk
0:00:06.3]} 54. Rb6+ {[%clk 0:00:13.5]} 54... Nxb6 {[%clk 0:00:06.1]} 55. Ke2
{[%clk 0:00:13.3]} 55... Nc4 {[%clk 0:00:06.5]} 56. Ke1 {[%clk 0:00:13.5]} 56...
Rd2 {[%clk 0:00:07.4]} 57. Kf1 {[%clk 0:00:12.6]} 57... Kf5 {[%clk 0:00:08.3]}
58. Ke1 {[%clk 0:00:13.5]} 58... Ke5 {[%clk 0:00:09.2]} 59. Kf1 {[%clk
0:00:14.2]} 59... Rd3 {[%clk 0:00:10.1]} 60. Ke1 {[%clk 0:00:15.1]} 60... Rxc3
{[%clk 0:00:11]} 61. Kf1 {[%clk 0:00:16]} 61... Rxf3+ {[%clk 0:00:11.9]} 62. Ke2
{[%clk 0:00:16.9]} 62... Re3+ {[%clk 0:00:12.8]} 63. Kd1 {[%clk 0:00:17.8]}
63... Kd4 {[%clk 0:00:13.7]} 64. Kc2 {[%clk 0:00:18.6]} 64... Rc3+ {[%clk
0:00:14]} 65. Kd1 {[%clk 0:00:18.7]} 65... Rb3 {[%clk 0:00:13.8]} 66. Ke2 {[%clk
0:00:19.6]} 66... g4 {[%clk 0:00:13.9]} 67. Kd1 {[%clk 0:00:20.5]} 67... Rb2
{[%clk 0:00:14.3]} 68. Kc1 {[%clk 0:00:20.2]} 68... Kd3 {[%clk 0:00:14.8]} 69.
Kd1 {[%clk 0:00:20.7]} 69... Rb1# {[%clk 0:00:15.7]} 0-1

[Event "Late-Titled-Tuesday-Blitz-July-09-2024"]
[Site "Chess.com"]
[Date "2024.07.09"]
[Round "7"]
[White "GlavkonVVS"]
[Black "carokannlover213"]
[Result "1/2-1/2"]
[WhiteElo "2584"]
[BlackElo "2705"]
[TimeControl "180+1"]
[EndTime "15:17:37 PDT"]
[Termination "Game drawn by repetition"]

1. c4 {[%clk 0:03:00.9]} 1... a6 {[%clk 0:02:57.2]} 2. e3 {[%clk 0:02:56.8]}
2... b5 {[%clk 0:02:57]} 3. cxb5 {[%clk 0:02:56.1]} 3... axb5 {[%clk 0:02:57.9]}
4. Bxb5 {[%clk 0:02:55.9]} 4... Ba6 {[%clk 0:02:58.5]} 5. Bxa6 {[%clk
0:02:53.8]} 5... Nxa6 {[%clk 0:02:59.4]} 6. d4 {[%clk 0:02:52.2]} 6... Nb4
{[%clk 0:02:59.7]} 7. a3 {[%clk 0:02:51.1]} 7... Nf6 {[%clk 0:02:49.6]} 8. Nc3
{[%clk 0:02:50.2]} 8... e6 {[%clk 0:02:46.5]} 9. Nf3 {[%clk 0:02:50.1]} 9... Be7
{[%clk 0:02:44.2]} 10. O-O {[%clk 0:02:50]} 10... O-O {[%clk 0:02:44.2]} 11. e4
{[%clk 0:02:50.1]} 11... d5 {[%clk 0:02:42.1]} 12. e5 {[%clk 0:02:47.7]} 12...
Ne4 {[%clk 0:02:41.8]} 13. Bd2 {[%clk 0:02:33.1]} 13... Nc6 {[%clk 0:02:37.8]}
14. Qc2 {[%clk 0:02:25.9]} 14... Nxd2 {[%clk 0:02:32.1]} 15. Qxd2 {[%clk
0:02:25.6]} 15... Na5 {[%clk 0:02:32.6]} 16. Qc2 {[%clk 0:02:22.5]} 16... Qb8
{[%clk 0:02:30.1]} 17. b4 {[%clk 0:02:10.2]} 17... Nc4 {[%clk 0:02:30]} 18. Qb3
{[%clk 0:02:08.2]} 18... Qb7 {[%clk 0:02:30]} 19. Rfb1 {[%clk 0:02:05.6]} 19...
Rfb8 {[%clk 0:02:29]} 20. Na4 {[%clk 0:01:51.7]} 20... Ra7 {[%clk 0:01:32.8]}
21. Nc5 {[%clk 0:01:51.1]} 21... Qa8 {[%clk 0:01:33.5]} 22. a4 {[%clk
0:01:46.3]} 22... c6 {[%clk 0:01:32.2]} 23. Qc2 {[%clk 0:01:29.6]} 23... Nb6
{[%clk 0:01:03.9]} 24. a5 {[%clk 0:01:15.2]} 24... Nc4 {[%clk 0:01:04]} 25. h4
{[%clk 0:01:13.9]} 25... h6 {[%clk 0:00:59.1]} 26. g3 {[%clk 0:01:03.4]} 26...
Rb5 {[%clk 0:00:58]} 27. Nd2 {[%clk 0:01:01.3]} 27... Bxc5 {[%clk 0:00:53.2]}
28. dxc5 {[%clk 0:00:18.9]} 28... Nxe5 {[%clk 0:00:52.9]} 29. Qc3 {[%clk
0:00:18.5]} 29... Ng4 {[%clk 0:00:36.1]} 30. Nf3 {[%clk 0:00:18.1]} 30... Rb8
{[%clk 0:00:28.2]} 31. Nd4 {[%clk 0:00:18]} 31... e5 {[%clk 0:00:27.9]} 32. Nf5
{[%clk 0:00:17.3]} 32... d4 {[%clk 0:00:24.7]} 33. Qf3 {[%clk 0:00:16.8]} 33...
h5 {[%clk 0:00:23.1]} 34. Nd6 {[%clk 0:00:16.4]} 34... g6 {[%clk 0:00:19.3]} 35.
a6 {[%clk 0:00:15.2]} 35... Kg7 {[%clk 0:00:16.3]} 36. b5 {[%clk 0:00:14.5]}
36... cxb5 {[%clk 0:00:14.8]} 37. Qxa8 {[%clk 0:00:14.5]} 37... Rbxa8 {[%clk
0:00:14.8]} 38. Rxb5 {[%clk 0:00:14.4]} 38... Rxa6 {[%clk 0:00:14.4]} 39. Rxa6
{[%clk 0:00:15]} 39... Rxa6 {[%clk 0:00:15.3]} 40. Rb7 {[%clk 0:00:15.6]} 40...
Ra1+ {[%clk 0:00:13.3]} 41. Kg2 {[%clk 0:00:15.6]} 41... Rc1 {[%clk 0:00:13.5]}
42. Rxf7+ {[%clk 0:00:15.4]} 42... Kg8 {[%clk 0:00:13.7]} 43. Rc7 {[%clk
0:00:16]} 43... Rc2 {[%clk 0:00:13.5]} 44. Ne4 {[%clk 0:00:15.5]} 44... d3
{[%clk 0:00:11.4]} 45. Rd7 {[%clk 0:00:15.3]} 45... Rc4 {[%clk 0:00:07]} 46. Kf3
{[%clk 0:00:14.5]} 46... Rxe4 {[%clk 0:00:02.1]} 47. Kxe4 {[%clk 0:00:13.4]}
47... Nf6+ {[%clk 0:00:01.8]} 48. Kxd3 {[%clk 0:00:10.9]} 48... Nxd7 {[%clk
0:00:02.7]} 49. c6 {[%clk 0:00:11.1]} 49... Nb6 {[%clk 0:00:02.4]} 50. Ke4
{[%clk 0:00:10.4]} 50... Kf7 {[%clk 0:00:03]} 51. Kxe5 {[%clk 0:00:10.7]} 51...
Ke7 {[%clk 0:00:03.7]} 52. f3 {[%clk 0:00:10.4]} 52... Nc4+ {[%clk 0:00:04]} 53.
Kf4 {[%clk 0:00:10.2]} 53... Kf6 {[%clk 0:00:03.7]} 54. c7 {[%clk 0:00:10.1]}
54... Nd6 {[%clk 0:00:04.6]} 55. g4 {[%clk 0:00:10.4]} 55... Ke6 {[%clk
0:00:04]} 56. Kg5 {[%clk 0:00:10.1]} 56... hxg4 {[%clk 0:00:03.5]} 57. fxg4
{[%clk 0:00:10.4]} 57... Kf7 {[%clk 0:00:04.1]} 58. h5 {[%clk 0:00:10.5]} 58...
gxh5 {[%clk 0:00:05]} 59. gxh5 {[%clk 0:00:10.9]} 59... Kg7 {[%clk 0:00:05.5]}
60. h6+ {[%clk 0:00:11.3]} 60... Kh7 {[%clk 0:00:04.7]} 61. Kh5 {[%clk
0:00:11.7]} 61... Nc8 {[%clk 0:00:04]} 62. Kg5 {[%clk 0:00:11.6]} 62... Nd6
{[%clk 0:00:04.3]} 63. Kh5 {[%clk 0:00:11.7]} 63... Nc8 {[%clk 0:00:03]} 64. Kg5
{[%clk 0:00:11.7]} 64... Nd6 {[%clk 0:00:02.7]} 1/2-1/2

[Event "Late-Titled-Tuesday-Blitz-July-09-2024"]
[Site "Chess.com"]
[Date "2024.07.09"]
[Round "7"]
[White "rpragchess"]
[Black "jk13"]
[Result "1-0"]
[WhiteElo "3099"]
[BlackElo "2685"]
[TimeControl "180+1"]
[EndTime "15:17:38 PDT"]
[Termination "rpragchess won by resignation"]

1. c4 {[%clk 0:03:00.9]} 1... e6 {[%clk 0:02:59.9]} 2. Nc3 {[%clk 0:02:59.9]}
2... Bb4 {[%clk 0:03:00.1]} 3. h4 {[%clk 0:02:57.8]} 3... Nf6 {[%clk 0:02:58.9]}
4. e4 {[%clk 0:02:54.4]} 4... e5 {[%clk 0:02:53.9]} 5. Nd5 {[%clk 0:02:37.8]}
5... Bc5 {[%clk 0:02:48.4]} 6. d3 {[%clk 0:02:31.2]} 6... d6 {[%clk 0:02:40.5]}
7. Be2 {[%clk 0:02:08.9]} 7... Nxd5 {[%clk 0:02:32.8]} 8. cxd5 {[%clk
0:02:08.4]} 8... O-O {[%clk 0:02:30.9]} 9. Nf3 {[%clk 0:02:04.1]} 9... f5 {[%clk
0:02:24.2]} 10. h5 {[%clk 0:01:27]} 10... h6 {[%clk 0:02:19.7]} 11. Qb3 {[%clk
0:01:25.8]} 11... Nd7 {[%clk 0:02:04.1]} 12. exf5 {[%clk 0:01:18.8]} 12... Nf6
{[%clk 0:02:00.2]} 13. Nh4 {[%clk 0:01:17.6]} 13... a5 {[%clk 0:01:40]} 14. Be3
{[%clk 0:00:59.7]} 14... a4 {[%clk 0:01:22.3]} 15. Qc4 {[%clk 0:00:59.3]} 15...
b6 {[%clk 0:01:19.9]} 16. Bf3 {[%clk 0:00:58.5]} 16... Ba6 {[%clk 0:01:14.3]}
17. Qc2 {[%clk 0:00:56.9]} 17... Bb4+ {[%clk 0:01:12.8]} 18. Kd1 {[%clk
0:00:53]} 18... a3 {[%clk 0:01:11.9]} 19. Ng6 {[%clk 0:00:43.3]} 19... Rf7
{[%clk 0:01:06]} 20. b3 {[%clk 0:00:35.8]} 20... Qe8 {[%clk 0:00:42.7]} 21. g4
{[%clk 0:00:33.7]} 21... Nh7 {[%clk 0:00:42.9]} 22. Be4 {[%clk 0:00:30.7]} 22...
Qd8 {[%clk 0:00:39.6]} 23. f3 {[%clk 0:00:30.1]} 23... Ng5 {[%clk 0:00:33.7]}
24. Ke2 {[%clk 0:00:29.5]} 24... Bc5 {[%clk 0:00:29.1]} 25. Rac1 {[%clk
0:00:27.8]} 25... Bb5 {[%clk 0:00:26.6]} 26. Qd2 {[%clk 0:00:26.7]} 26... Bxe3
{[%clk 0:00:22.6]} 27. Qxe3 {[%clk 0:00:25.1]} 27... Be8 {[%clk 0:00:19]} 28.
Rc3 {[%clk 0:00:20.2]} 28... Rd7 {[%clk 0:00:17.4]} 29. Nh4 {[%clk 0:00:15.5]}
29... Ra5 {[%clk 0:00:15.5]} 30. Ng6 {[%clk 0:00:14.2]} 30... Bxg6 {[%clk
0:00:13.2]} 31. hxg6 {[%clk 0:00:13.6]} 31... Qf6 {[%clk 0:00:11.2]} 32. Rhc1
{[%clk 0:00:14]} 32... Ra7 {[%clk 0:00:10.9]} 33. Rc6 {[%clk 0:00:13.9]} 33...
Nh3 {[%clk 0:00:10.3]} 34. Kd2 {[%clk 0:00:13.7]} 34... Nf4 {[%clk 0:00:10.4]}
35. Kc3 {[%clk 0:00:13.7]} 35... Qh4 {[%clk 0:00:09.2]} 36. Kb4 {[%clk
0:00:12.4]} 36... Qh2 {[%clk 0:00:08.8]} 37. R1c2 {[%clk 0:00:12]} 37... Qh4
{[%clk 0:00:09.5]} 38. Qf2 {[%clk 0:00:11]} 38... Qh1 {[%clk 0:00:09.4]} 39. Rc1
{[%clk 0:00:10.5]} 39... Qh3 {[%clk 0:00:08.9]} 40. R6c2 {[%clk 0:00:10]} 40...
h5 {[%clk 0:00:06.5]} 41. gxh5 {[%clk 0:00:08.9]} 41... Qxh5 {[%clk 0:00:06.7]}
42. Qg3 {[%clk 0:00:09]} 42... Qh6 {[%clk 0:00:06.5]} 43. Rg1 {[%clk 0:00:04.4]}
43... Nh5 {[%clk 0:00:05.5]} 44. Qh4 {[%clk 0:00:04]} 44... Nf6 {[%clk
0:00:05.7]} 45. Qxh6 {[%clk 0:00:03.7]} 45... gxh6 {[%clk 0:00:06.6]} 46. Rc6
{[%clk 0:00:03.6]} 46... Kg7 {[%clk 0:00:07.5]} 47. Rh1 {[%clk 0:00:04]} 47...
h5 {[%clk 0:00:07.8]} 48. Kc3 {[%clk 0:00:02.4]} 48... Ra5 {[%clk 0:00:07.9]}
49. b4 {[%clk 0:00:02.3]} 49... Ra7 {[%clk 0:00:07.8]} 50. Kb3 {[%clk
0:00:02.6]} 50... Ra8 {[%clk 0:00:07.7]} 51. Rc2 {[%clk 0:00:02.8]} 51... Ra7
{[%clk 0:00:07.6]} 52. Rch2 {[%clk 0:00:03.4]} 52... Rb7 {[%clk 0:00:07.4]} 53.
Rxh5 {[%clk 0:00:03.9]} 53... Nxh5 {[%clk 0:00:07.5]} 54. Rxh5 {[%clk
0:00:04.1]} 54... Kf6 {[%clk 0:00:08.4]} 55. Rh8 {[%clk 0:00:04.4]} 55... Rg7
{[%clk 0:00:08.1]} 56. Rf8+ {[%clk 0:00:04.4]} 56... Ke7 {[%clk 0:00:08.6]} 57.
Ra8 {[%clk 0:00:04.3]} 57... Kf6 {[%clk 0:00:08.4]} 58. Kxa3 {[%clk 0:00:04.9]}
58... b5 {[%clk 0:00:08]} 59. Kb3 {[%clk 0:00:05]} 59... Ke7 {[%clk 0:00:07.9]}
60. a3 {[%clk 0:00:04.1]} 60... Kf6 {[%clk 0:00:08.2]} 61. Kc3 {[%clk
0:00:04.7]} 61... Ke7 {[%clk 0:00:08.5]} 62. Kd2 {[%clk 0:00:05.3]} 62... Kf6
{[%clk 0:00:08.9]} 63. Ke3 {[%clk 0:00:05.9]} 63... Re7 {[%clk 0:00:07.8]} 64.
Kf2 {[%clk 0:00:06.2]} 64... Kg7 {[%clk 0:00:08.3]} 65. Kg3 {[%clk 0:00:06.7]}
65... Kf6 {[%clk 0:00:04.5]} 66. Kg4 {[%clk 0:00:07.2]} 66... Rg7 {[%clk
0:00:03.9]} 67. Kh5 {[%clk 0:00:07.5]} 67... Rb6 {[%clk 0:00:03.1]} 68. Kh6
{[%clk 0:00:07]} 68... Re7 {[%clk 0:00:02.8]} 69. Rf8+ {[%clk 0:00:06.9]} 1-0

[Event "Late-Titled-Tuesday-Blitz-July-09-2024"]
[Site "Chess.com"]
[Date "2024.07.09"]
[Round "7"]
[White "DanielNaroditsky"]
[Black "Vladimir_Zakhartsov"]
[Result "1-0"]
[WhiteElo "3096"]
[BlackElo "2900"]
[TimeControl "180+1"]
[EndTime "15:17:39 PDT"]
[Termination "DanielNaroditsky won by checkmate"]

1. d4 {[%clk 0:03:00.9]} 1... Nf6 {[%clk 0:02:59.6]} 2. Nf3 {[%clk 0:03:00.6]}
2... e6 {[%clk 0:02:59]} 3. e3 {[%clk 0:03:00.9]} 3... c5 {[%clk 0:02:52.6]} 4.
Bd3 {[%clk 0:03:01.2]} 4... d5 {[%clk 0:02:49]} 5. b3 {[%clk 0:03:01]} 5... cxd4
{[%clk 0:02:44.2]} 6. exd4 {[%clk 0:03:01.9]} 6... Bd6 {[%clk 0:02:42.5]} 7. O-O
{[%clk 0:03:01.6]} 7... O-O {[%clk 0:02:42.8]} 8. Bb2 {[%clk 0:03:02.1]} 8...
Nc6 {[%clk 0:02:39.9]} 9. Nbd2 {[%clk 0:02:58.9]} 9... Nb4 {[%clk 0:02:37.8]}
10. Be2 {[%clk 0:02:59.2]} 10... Ne4 {[%clk 0:02:35]} 11. c3 {[%clk 0:02:53.9]}
11... Nc6 {[%clk 0:02:33.8]} 12. c4 {[%clk 0:02:53.7]} 12... f5 {[%clk 0:02:32]}
13. Ne5 {[%clk 0:02:44.5]} 13... Nxe5 {[%clk 0:02:00.3]} 14. dxe5 {[%clk
0:02:41.1]} 14... Bc5 {[%clk 0:01:58.2]} 15. cxd5 {[%clk 0:02:35.1]} 15... exd5
{[%clk 0:01:31.7]} 16. Rc1 {[%clk 0:02:35.2]} 16... Bb6 {[%clk 0:01:13.5]} 17.
Nf3 {[%clk 0:02:35.6]} 17... Be6 {[%clk 0:01:11.4]} 18. Nd4 {[%clk 0:02:35.4]}
18... Qd7 {[%clk 0:01:06.5]} 19. f3 {[%clk 0:02:27.8]} 19... Ng5 {[%clk
0:01:04.8]} 20. Qd2 {[%clk 0:02:26.4]} 20... h6 {[%clk 0:00:52.5]} 21. Kh1
{[%clk 0:02:21.4]} 21... a6 {[%clk 0:00:50.4]} 22. Rfd1 {[%clk 0:02:12.6]} 22...
Rfd8 {[%clk 0:00:48.1]} 23. h4 {[%clk 0:02:06.3]} 23... Nf7 {[%clk 0:00:48.2]}
24. f4 {[%clk 0:01:59.2]} 24... Bxd4 {[%clk 0:00:45.9]} 25. Bxd4 {[%clk
0:01:56.5]} 25... Rdc8 {[%clk 0:00:46.1]} 26. Rxc8+ {[%clk 0:01:37.4]} 26...
Rxc8 {[%clk 0:00:47]} 27. h5 {[%clk 0:01:37]} 27... Nd8 {[%clk 0:00:46.1]} 28.
Bf3 {[%clk 0:01:34.9]} 28... Bf7 {[%clk 0:00:43.1]} 29. Bb6 {[%clk 0:01:26.8]}
29... Kh7 {[%clk 0:00:38.6]} 30. Bxd5 {[%clk 0:01:17.7]} 30... Ne6 {[%clk
0:00:28.8]} 31. Be4 {[%clk 0:01:08.7]} 31... Qe7 {[%clk 0:00:28.1]} 32. Bxf5+
{[%clk 0:01:08.7]} 32... Kh8 {[%clk 0:00:28.8]} 33. Qf2 {[%clk 0:01:05.2]} 33...
Bxh5 {[%clk 0:00:26.3]} 34. Rd6 {[%clk 0:01:05.8]} 34... Bf7 {[%clk 0:00:21.2]}
35. Kh2 {[%clk 0:01:00.1]} 35... Rf8 {[%clk 0:00:19.2]} 36. Qg3 {[%clk
0:00:45.3]} 36... Bg8 {[%clk 0:00:17.1]} 37. Qg4 {[%clk 0:00:33.2]} 37... Rxf5
{[%clk 0:00:06.5]} 38. Qxf5 {[%clk 0:00:34.1]} 38... Qh4+ {[%clk 0:00:07.2]} 39.
Qh3 {[%clk 0:00:34.8]} 39... Qxf4+ {[%clk 0:00:07.4]} 40. Qg3 {[%clk 0:00:35.6]}
40... Qf5 {[%clk 0:00:06.9]} 41. Be3 {[%clk 0:00:33.4]} 41... Qh5+ {[%clk
0:00:06.7]} 42. Kg1 {[%clk 0:00:34.2]} 42... Qe2 {[%clk 0:00:05.3]} 43. Qf2
{[%clk 0:00:25.6]} 43... Qg4 {[%clk 0:00:05]} 44. Qf3 {[%clk 0:00:18.2]} 44...
Qh4 {[%clk 0:00:03.9]} 45. Bf2 {[%clk 0:00:16.5]} 45... Qg5 {[%clk 0:00:03.5]}
46. Qg3 {[%clk 0:00:16]} 46... Qc1+ {[%clk 0:00:03.7]} 47. Kh2 {[%clk
0:00:16.3]} 47... Qc2 {[%clk 0:00:04.4]} 48. Rd7 {[%clk 0:00:12]} 48... Qe4
{[%clk 0:00:04.6]} 49. Be3 {[%clk 0:00:09.6]} 49... b5 {[%clk 0:00:04.4]} 50.
Re7 {[%clk 0:00:09.7]} 50... Qf5 {[%clk 0:00:04.5]} 51. Kg1 {[%clk 0:00:07.6]}
51... Qb1+ {[%clk 0:00:04.4]} 52. Kh2 {[%clk 0:00:08.3]} 52... Qf5 {[%clk
0:00:05.2]} 53. Ra7 {[%clk 0:00:09]} 53... Qh5+ {[%clk 0:00:05.4]} 54. Qh3
{[%clk 0:00:06.6]} 54... Qxe5+ {[%clk 0:00:05.7]} 55. Kh1 {[%clk 0:00:07.4]}
55... Qa1+ {[%clk 0:00:05.5]} 56. Bg1 {[%clk 0:00:06.8]} 56... Qe5 {[%clk
0:00:05.7]} 57. Re7 {[%clk 0:00:04.6]} 57... Qf6 {[%clk 0:00:05.5]} 58. Re8
{[%clk 0:00:05.3]} 58... Qf7 {[%clk 0:00:05.4]} 59. Rb8 {[%clk 0:00:04.3]} 59...
Qg6 {[%clk 0:00:05.6]} 60. Qh2 {[%clk 0:00:03.9]} 60... Kh7 {[%clk 0:00:05.4]}
61. Be3 {[%clk 0:00:03.8]} 61... Qb1+ {[%clk 0:00:05.4]} 62. Qg1 {[%clk
0:00:04.5]} 62... Qe4 {[%clk 0:00:06.1]} 63. Qf2 {[%clk 0:00:04.8]} 63... Qb1+
{[%clk 0:00:05.8]} 64. Kh2 {[%clk 0:00:05]} 64... Qe4 {[%clk 0:00:06.5]} 65. Qg3
{[%clk 0:00:05.2]} 65... Qf5 {[%clk 0:00:06.1]} 66. Rb7 {[%clk 0:00:04.8]} 66...
Qh5+ {[%clk 0:00:06.1]} 67. Qh3 {[%clk 0:00:05]} 67... Qe5+ {[%clk 0:00:06.5]}
68. Kh1 {[%clk 0:00:05.7]} 68... Qe4 {[%clk 0:00:06.2]} 69. Qxh6# {[%clk
0:00:05.8]} 1-0